bitfinex-derivatives/quotes_BTCF0:USTF0_20250720
["timestamp","ask_amount","ask_price","bid_price","bid_amount"]
[1753025377488,0.30027,118770.0,118760.0,1.63085701]
[1753025377888,0.30027,118770.0,118760.0,1.18568603]
[1753025378088,0.30127,118770.0,118760.0,1.77012603]
[1753025378489,0.21953,118770.0,118760.0,1.77012603]
[1753025378688,0.08771,118770.0,118760.0,1.77012603]
[1753025378985,0.07622,118770.0,118760.0,1.77012603]
[1753025379184,0.07622,118770.0,118760.0,1.84550867]
[1753025379389,0.11822,118770.0,118760.0,1.77012603]
[1753025379692,0.16579,118770.0,118760.0,1.84546867]
[1753025380387,0.16579,118770.0,118760.0,1.86655407]
[1753025380586,0.16579,118770.0,118760.0,2.00645407]
[1753025381483,0.07622,118770.0,118760.0,2.00645407]
[1753025381689,0.07622,118770.0,118760.0,1.93107143]
[1753025385285,0.052,118770.0,118760.0,1.93107143]
[1753025385488,0.052,118770.0,118760.0,1.99136292]
[1753025385693,0.052,118770.0,118760.0,1.93107143]
[1753025387287,0.052,118770.0,118760.0,1.99137102]
[1753025387488,0.052,118770.0,118760.0,1.93107143]
[1753025387995,0.052,118770.0,118760.0,1.9913709]
[1753025388294,0.052,118770.0,118760.0,1.93107143]
[1753025391692,0.052,118770.0,118760.0,2.00645407]
[1753025392789,0.07622,118770.0,118760.0,2.00645407]
[1753025393386,0.07622,118770.0,118760.0,1.93107143]
[1753025394492,0.07622,118770.0,118760.0,2.29187143]
[1753025394892,0.07622,118770.0,118760.0,2.36725407]
[1753025395699,0.052,118770.0,118760.0,2.36725407]
[1753025396998,0.07459,118770.0,118760.0,2.36725407]
[1753025399602,0.07459,118770.0,118760.0,2.29187143]
[1753025399793,0.07459,118770.0,118760.0,2.39773955]
[1753025400404,0.052,118770.0,118760.0,2.39773955]
[1753025401104,0.052,118770.0,118760.0,2.29187143]
[1753025401491,0.052,118770.0,118760.0,2.36741224]
[1753025402201,0.07459,118770.0,118760.0,2.36741224]
[1753025402808,0.07459,118770.0,118760.0,1.78301224]
[1753025403106,0.07459,118770.0,118760.0,3.53097224]
[1753025403399,0.052,118770.0,118760.0,3.45543143]
[1753025404115,0.052,118770.0,118760.0,3.53097224]
[1753025404994,0.07459,118770.0,118760.0,1.78301224]
[1753025405197,0.07459,118770.0,118760.0,3.53089224]
[1753025405402,0.052,118770.0,118760.0,3.53089224]
[1753025406398,0.07459,118770.0,118760.0,3.53089224]
[1753025406996,0.07459,118770.0,118760.0,3.45535143]
[1753025407198,0.052,118770.0,118760.0,1.70747143]
[1753025407393,0.30226,118770.0,118760.0,1.93047143]
[1753025408402,0.30226,118770.0,118760.0,2.03633955]
[1753025409100,0.30226,118770.0,118760.0,2.03629955]
[1753025409404,0.30226,118770.0,118760.0,1.67549955]
[1753025409804,0.2219,118770.0,118760.0,2.03629955]
[1753025410398,0.2219,118770.0,118760.0,2.04629955]
[1753025410806,0.08695,118770.0,118760.0,2.04629955]
[1753025411706,0.2219,118770.0,118760.0,2.04629955]
[1753025411900,0.30226,118770.0,118760.0,1.32263955]
[1753025412109,0.84993504,118770.0,118760.0,0.95258209]
[1753025412308,0.84993504,118770.0,118760.0,1.12091789]
[1753025413108,0.84993504,118770.0,118760.0,1.27983956]
[1753025413406,0.84993504,118770.0,118760.0,0.59029144]
[1753025413607,0.84993504,118770.0,118760.0,1.17397144]
[1753025413910,1.01833504,118770.0,118760.0,0.87603978]
[1753025414099,1.01833504,118770.0,118760.0,1.09065144]
[1753025414596,0.84993504,118770.0,118760.0,1.01500977]
[1753025414799,1.26833504,118770.0,118760.0,1.09069144]
[1753025414999,1.26833504,118770.0,118760.0,0.84671397]
[1753025415201,1.26833504,118770.0,118760.0,0.08387025]
[1753025415407,1.26833504,118770.0,118760.0,0.66755025]
[1753025415909,1.26833504,118770.0,118760.0,0.88220191]
[1753025416119,1.26833504,118770.0,118760.0,1.05053771]
[1753025416303,1.26833504,118770.0,118760.0,0.99000977]
[1753025416504,1.26833504,118770.0,118760.0,0.82167397]
[1753025417314,1.26833504,118770.0,118760.0,0.86699789]
[1753025418606,1.26833504,118770.0,118750.0,0.35414316]
[1753025418607,0.2660058,118760.0,118750.0,0.35414316]
[1753025418805,0.8993958,118760.0,118750.0,0.65143767]
[1753025419015,1.3178118,118760.0,118750.0,0.65143767]
[1753025419313,1.3178118,118760.0,118750.0,0.71192561]
[1753025419811,1.3178118,118760.0,118750.0,0.12824561]
[1753025419999,0.41861,118750.0,118740.0,0.07142411]
[1753025420311,0.91844698,118750.0,118740.0,0.06048794]
[1753025420511,1.33687898,118750.0,118740.0,0.06048794]
[1753025420710,1.5622836,118750.0,118740.0,0.06048794]
[1753025420906,1.5622836,118750.0,118730.0,0.01098496]
[1753025420907,0.3921942,118740.0,118730.0,0.64403698]
[1753025421116,0.8729942,118740.0,118730.0,0.85868864]
[1753025421415,1.0414342,118740.0,118730.0,0.85868864]
[1753025421616,1.0414342,118740.0,118730.0,0.90853864]
[1753025422306,1.0414342,118740.0,118730.0,0.87171166]
[1753025422912,1.0414342,118740.0,118730.0,0.89279706]
[1753025423216,1.0424342,118740.0,118730.0,0.90370505]
[1753025424814,1.0434342,118740.0,118730.0,0.90370505]
[1753025425109,1.0434342,118740.0,118730.0,0.32006505]
[1753025425314,1.0434342,118740.0,118730.0,1.01683505]
[1753025429211,0.6826342,118740.0,118730.0,1.01683505]
[1753025430615,0.5141942,118740.0,118730.0,1.01683505]
[1753025431012,0.8749942,118740.0,118730.0,0.61563339]
[1753025431308,1.0434342,118740.0,118730.0,0.0210854]
[1753025431715,1.25808586,118740.0,118730.0,0.0210854]
[1753025432113,1.0434342,118740.0,118730.0,0.0210854]
[1753025433710,1.0434342,118740.0,118730.0,0.23573706]
[1753025434516,1.0434342,118740.0,118730.0,0.0210854]
[1753025436719,1.0434342,118740.0,118730.0,0.28357706]
[1753025438223,1.0434342,118740.0,118730.0,0.0689254]
[1753025438520,1.0434342,118740.0,118730.0,0.28357706]
[1753025439812,1.0434342,118740.0,118730.0,0.30849706]
[1753025440412,1.6269942,118740.0,118730.0,0.30849706]
[1753025441418,1.0434342,118740.0,118730.0,0.30849706]
[1753025441620,1.6269542,118740.0,118730.0,0.48915706]
[1753025443222,1.6269542,118740.0,118730.0,0.0210854]
[1753025443427,1.84160586,118740.0,118730.0,0.0210854]
[1753025443625,1.6269542,118740.0,118730.0,0.0210854]
[1753025445722,1.6269542,118740.0,118730.0,0.0689254]
[1753025446335,1.6269542,118740.0,118730.0,0.30849706]
[1753025446529,1.6259542,118740.0,118730.0,0.30849706]
[1753025446734,1.6279542,118740.0,118730.0,0.30849706]
[1753025447428,1.6279542,118740.0,118730.0,0.0938454]
[1753025447629,1.4595142,118740.0,118730.0,0.0938454]
[1753025448131,0.3442442,118740.0,118730.0,0.71776439]
[1753025448331,0.2913642,118740.0,118730.0,0.65753526]
[1753025448531,0.123,118740.0,118730.0,1.09397693]
[1753025449337,0.123,118740.0,118730.0,1.01833526]
[1753025449836,0.123,118740.0,118730.0,1.09388371]
[1753025450137,0.123,118740.0,118730.0,1.01833526]
[1753025450434,0.123,118740.0,118730.0,1.09386142]
[1753025451429,0.123,118740.0,118730.0,1.67726142]
[1753025451631,0.123,118740.0,118730.0,1.60173526]
[1753025452035,0.123,118740.0,118730.0,1.70760338]
[1753025452435,0.123,118740.0,118730.0,1.60173526]
[1753025452935,0.123,118740.0,118730.0,1.67720595]
[1753025456230,0.003,118740.0,118730.0,2.09564594]
[1753025456439,0.27157408,118750.0,118740.0,0.416754]
[1753025456639,0.38157408,118750.0,118740.0,1.05252194]
[1753025456833,0.38157408,118750.0,118740.0,0.99220566]
[1753025457636,0.38457408,118750.0,118740.0,0.99220566]
[1753025458141,0.38457408,118750.0,118740.0,1.05250885]
[1753025458439,0.46266408,118750.0,118740.0,1.63574885]
[1753025458639,0.46466408,118750.0,118740.0,1.63574885]
[1753025459039,0.51910408,118750.0,118740.0,1.57544566]
[1753025459235,0.51910408,118750.0,118740.0,0.99220566]
[1753025459437,0.51910408,118750.0,118740.0,1.6357348]
[1753025460334,0.51910408,118750.0,118740.0,1.6568202]
[1753025460638,0.46466408,118750.0,118740.0,1.6568202]
[1753025461338,0.42257608,118750.0,118740.0,1.6568202]
[1753025461841,0.34448608,118750.0,118740.0,1.6568202]
[1753025462042,0.30238678,118750.0,118740.0,1.6568202]
[1753025462939,0.30238678,118750.0,118740.0,1.59653106]
[1753025464049,0.38047678,118750.0,118740.0,1.59653106]
[1753025464747,0.30238678,118750.0,118740.0,1.59653106]
[1753025465446,0.38047678,118750.0,118740.0,1.59653106]
[1753025465841,0.38047678,118750.0,118740.0,1.65680866]
[1753025466341,0.38047678,118750.0,118740.0,1.59653106]
[1753025466543,0.38047678,118750.0,118740.0,1.65681138]
[1753025467346,0.38047678,118750.0,118740.0,1.59653106]
[1753025468747,0.21212698,118750.0,118740.0,1.59653106]
[1753025469244,0.19309,118750.0,118740.0,1.59653106]
[1753025469450,0.115,118750.0,118740.0,2.17198272]
[1753025469654,0.115,118750.0,118740.0,2.03280175]
[1753025469945,0.09,118750.0,118740.0,2.24745341]
[1753025470142,0.05451,118750.0,118740.0,2.24745341]
[1753025470743,0.05451,118750.0,118740.0,2.03280175]
[1753025471352,0.05451,118750.0,118740.0,2.24745341]
[1753025471743,0.05451,118750.0,118740.0,2.03280175]
[1753025471943,0.04951,118750.0,118740.0,1.82115009]
[1753025472148,0.04951,118750.0,118740.0,2.03780175]
[1753025474350,0.04951,118750.0,118740.0,1.96233106]
[1753025474755,0.04951,118750.0,118740.0,2.17698272]
[1753025475753,0.28990334,118770.0,118760.0,0.1683356]
[1753025475950,0.15181334,118770.0,118760.0,1.81591034]
[1753025476257,0.12855334,118770.0,118760.0,1.8310007]
[1753025476456,0.15181334,118770.0,118760.0,1.8310007]
[1753025477258,0.15181334,118770.0,118760.0,1.75554892]
[1753025477555,0.54199474,118770.0,118760.0,1.30271235]
[1753025477751,0.54199474,118770.0,118760.0,1.37818957]
[1753025477950,0.54199474,118770.0,118760.0,1.27232145]
[1753025478358,0.54199474,118770.0,118760.0,1.19684423]
[1753025478656,0.54199474,118770.0,118760.0,1.27232625]
[1753025479757,0.5234414,118770.0,118760.0,1.48697791]
[1753025480159,0.5234414,118770.0,118760.0,1.29341165]
[1753025484260,0.9029288,118770.0,118760.0,0.19060439]
[1753025484563,0.9029288,118770.0,118760.0,0.69607439]
[1753025486360,0.9029288,118770.0,118760.0,0.91072605]
[1753025486562,0.9029288,118770.0,118760.0,0.95676605]
[1753025486962,0.9029288,118770.0,118760.0,0.98688605]
[1753025487660,0.8842414,118770.0,118760.0,1.15522165]
[1753025487865,0.8842414,118770.0,118760.0,1.23594165]
[1753025488066,0.8842414,118770.0,118760.0,1.06760605]
[1753025488262,0.8842414,118770.0,118760.0,1.10560335]
[1753025488968,0.8842414,118770.0,118760.0,1.27393895]
[1753025489154,0.5234414,118770.0,118760.0,1.27393895]
[1753025490564,0.22336,118770.0,118760.0,1.48859061]
[1753025490872,0.4786714,118770.0,118760.0,1.27393895]
[1753025491067,0.5261714,118770.0,118760.0,1.27393895]
[1753025491766,0.5261714,118770.0,118760.0,1.27493895]
[1753025492472,0.5261714,118770.0,118760.0,1.27693895]
[1753025493868,0.5261714,118770.0,118760.0,1.49159061]
[1753025494662,0.5261714,118770.0,118760.0,1.43123129]
[1753025495469,0.5261714,118770.0,118760.0,1.50671331]
[1753025496374,0.5261714,118770.0,118760.0,1.29206165]
[1753025498068,0.5261714,118770.0,118760.0,0.70930165]
[1753025498372,0.5261714,118770.0,118760.0,1.29202165]
[1753025499176,0.5261714,118770.0,118760.0,1.50667331]
[1753025499473,0.4786714,118770.0,118760.0,1.07736999]
[1753025499773,0.4786714,118770.0,118760.0,1.50667331]
[1753025500173,0.5261714,118770.0,118760.0,1.50667331]
[1753025500874,0.4485714,118770.0,118760.0,1.50667331]
[1753025507080,0.4485714,118770.0,118760.0,1.86747331]
[1753025507981,0.3950914,118770.0,118760.0,1.86747331]
[1753025509685,0.11,118770.0,118760.0,1.86747331]
[1753025509886,0.11,118770.0,118760.0,1.79199129]
[1753025510880,0.11,118770.0,118760.0,1.86752534]
[1753025511792,0.5277913,118770.0,118760.0,0.70935358]
[1753025511974,0.11,118770.0,118760.0,1.86824524]
[1753025513586,0.2783213,118770.0,118760.0,1.86724524]
[1753025513886,0.2783213,118770.0,118760.0,1.86524524]
[1753025514686,0.11,118770.0,118760.0,1.86724524]
[1753025514886,0.11,118770.0,118760.0,1.86824524]
[1753025515586,0.11,118770.0,118760.0,1.79271119]
[1753025516282,0.11,118770.0,118760.0,1.8682059]
[1753025518984,0.11,118770.0,118760.0,1.79271119]
[1753025519695,0.3591913,118770.0,118760.0,1.79271119]
[1753025519897,0.3819713,118770.0,118760.0,1.86823567]
[1753025520595,0.21365,118770.0,118760.0,1.86823567]
[1753025520794,0.13278,118770.0,118760.0,1.86823567]
[1753025522693,0.13278,118770.0,118760.0,1.79271119]
[1753025522893,0.13278,118770.0,118760.0,1.89857931]
[1753025527396,0.13278,118770.0,118760.0,1.79271119]
[1753025527592,0.11,118770.0,118760.0,1.36340787]
[1753025527792,0.06,118770.0,118760.0,1.86825473]
[1753025527995,0.17854721,118790.0,118780.0,0.2233472]
[1753025528297,0.33947424,118790.0,118780.0,1.34519488]
[1753025528604,0.34376,118790.0,118780.0,1.19904654]
[1753025528899,0.34376,118790.0,118780.0,1.12355861]
[1753025529099,1.10619871,118790.0,118780.0,0.09273159]
[1753025529397,0.872853,118790.0,118780.0,1.10381237]
[1753025529596,0.873853,118790.0,118780.0,1.10381237]
[1753025529900,0.513053,118790.0,118780.0,0.58140889]
[1753025530203,0.514053,118790.0,118780.0,1.15165043]
[1753025530390,0.514053,118790.0,118780.0,1.16251853]
[1753025530589,0.874853,118790.0,118780.0,1.16251853]
[1753025530898,0.874853,118790.0,118780.0,0.94786687]
[1753025531099,0.874853,118790.0,118780.0,1.16251853]
[1753025531600,0.874853,118790.0,118780.0,0.94786687]
[1753025531802,0.874853,118790.0,118780.0,1.16251853]
[1753025532900,0.514053,118790.0,118780.0,1.24534853]
[1753025535603,0.514053,118790.0,118780.0,1.16987201]
[1753025536606,0.514053,118790.0,118780.0,0.95522035]
[1753025536793,0.514053,118790.0,118780.0,1.16987201]
[1753025536998,0.514053,118790.0,118780.0,0.95522035]
[1753025537303,0.514053,118790.0,118780.0,1.16987201]
[1753025537806,0.514053,118790.0,118780.0,1.24534853]
[1753025538401,0.514053,118790.0,118780.0,0.24530002]
[1753025538593,0.514053,118790.0,118780.0,0.85226002]
[1753025538798,0.514053,118790.0,118780.0,1.06691168]
[1753025539200,0.514053,118790.0,118780.0,0.85210002]
[1753025539404,0.514053,118790.0,118780.0,1.06675168]
[1753025539607,0.514053,118790.0,118780.0,0.85210002]
[1753025539807,0.514053,118790.0,118780.0,1.06675168]
[1753025540007,0.874853,118790.0,118780.0,1.06675168]
[1753025540702,1.10834869,118790.0,118780.0,0.6387535]
[1753025540901,0.89369703,118790.0,118780.0,0.71423002]
[1753025541914,0.89369703,118790.0,118780.0,0.92888168]
[1753025542108,0.89369703,118790.0,118780.0,0.70428192]
[1753025542109,1.10834869,118790.0,118780.0,0.70428192]
[1753025542310,1.10834869,118790.0,118780.0,0.0210854]
[1753025542611,1.34310913,118790.0,118780.0,0.0210854]
[1753025542811,1.34310913,118790.0,118780.0,0.08148348]
[1753025544315,1.12845747,118790.0,118780.0,0.08148348]
[1753025544914,1.34310913,118790.0,118780.0,0.08148348]
[1753025548029,1.83610913,118790.0,118780.0,0.08148348]
[1753025548831,1.62145747,118790.0,118780.0,0.08148348]
[1753025549032,1.83610913,118790.0,118780.0,0.08148348]
[1753025549433,1.62145747,118790.0,118780.0,0.08148348]
[1753025549732,1.83610913,118790.0,118780.0,0.08148348]
[1753025552641,1.66774112,118790.0,118780.0,0.08148348]
[1753025553335,1.45308946,118790.0,118780.0,0.08148348]
[1753025553835,0.96008946,118790.0,118780.0,0.00669348]
[1753025554031,1.34310913,118790.0,118780.0,0.00669348]
[1753025554739,1.17474112,118790.0,118780.0,0.00669348]
[1753025555440,0.96008946,118790.0,118780.0,0.00669348]
[1753025555735,0.96008946,118790.0,118780.0,0.22134514]
[1753025555939,0.96008946,118790.0,118780.0,0.24243054]
[1753025556135,0.89369703,118790.0,118780.0,0.24243054]
[1753025556341,0.89369703,118790.0,118780.0,0.02777888]
[1753025560241,1.10834869,118790.0,118780.0,0.02777888]
[1753025564338,1.1084237,118790.0,118770.0,0.07547652]
[1753025564539,0.1683218,118770.0,118760.0,0.62178697]
[1753025564745,0.9039318,118770.0,118760.0,0.01674697]
[1753025564943,1.11858346,118770.0,118760.0,0.10261612]
[1753025565142,1.13763812,118770.0,118760.0,0.09222349]
[1753025565543,1.13763812,118770.0,118760.0,0.09422349]
[1753025565749,0.92298646,118770.0,118760.0,0.09422349]
[1753025566641,0.92298646,118770.0,118760.0,0.01874697]
[1753025567239,0.92298646,118770.0,118760.0,0.01674697]
[1753025567548,0.92298646,118770.0,118760.0,0.03783237]
[1753025568048,0.92298646,118770.0,118760.0,0.04830165]
[1753025568948,0.92298646,118770.0,118760.0,0.03783237]
[1753025569550,1.13763812,118770.0,118760.0,0.03783237]
[1753025569749,0.92298646,118770.0,118760.0,0.03783237]
[1753025570147,0.92298646,118770.0,118760.0,0.04834723]
[1753025573352,0.92298646,118770.0,118760.0,0.43133489]
[1753025573950,0.92298646,118770.0,118760.0,0.46617489]
[1753025574253,0.56218646,118770.0,118760.0,0.46617489]
[1753025574454,0.56218646,118770.0,118760.0,0.61003311]
[1753025574655,1.52634646,118770.0,118760.0,0.68475311]
[1753025576651,0.92298646,118770.0,118760.0,0.68475311]
[1753025577155,0.92298646,118770.0,118760.0,0.51641711]
[1753025577354,0.92298646,118770.0,118760.0,0.30176545]
[1753025577555,0.56218646,118770.0,118760.0,0.44169711]
[1753025578557,0.92298646,118770.0,118760.0,0.44169711]
[1753025579558,0.92298646,118770.0,118760.0,0.22704545]
[1753025580256,0.92298646,118770.0,118760.0,0.10976059]
[1753025580758,0.92298646,118770.0,118760.0,0.09301362]
[1753025582066,0.92298646,118770.0,118760.0,0.44200484]
[1753025582261,0.56218646,118770.0,118760.0,0.44200484]
[1753025582451,0.56218646,118770.0,118760.0,0.22735318]
[1753025582758,0.56218646,118770.0,118760.0,0.44200484]
[1753025583159,0.92298646,118770.0,118760.0,0.15074318]
[1753025583358,0.92298646,118770.0,118760.0,0.36539484]
[1753025584053,0.56218646,118770.0,118760.0,0.36539484]
[1753025585657,0.92298646,118770.0,118760.0,0.36539484]
[1753025586762,0.79059646,118770.0,118760.0,0.31205484]
[1753025588361,0.91935646,118770.0,118760.0,0.53373084]
[1753025588565,0.91935646,118770.0,118760.0,0.61034084]
[1753025588761,0.91935646,118770.0,118760.0,0.4560774]
[1753025588962,0.91935646,118770.0,118760.0,0.67072906]
[1753025590063,0.91935646,118770.0,118760.0,0.50239306]
[1753025591968,0.91935646,118770.0,118760.0,0.2877414]
[1753025592766,0.91935646,118770.0,118760.0,0.50239306]
[1753025593162,0.91935646,118770.0,118760.0,0.2111314]
[1753025593362,0.91935646,118770.0,118760.0,0.42578306]
[1753025593666,0.91935646,118770.0,118760.0,0.36539484]
[1753025594260,0.91935646,118770.0,118760.0,0.44087136]
[1753025594667,0.91935646,118770.0,118760.0,0.36539484]
[1753025595260,0.91935646,118770.0,118760.0,0.44087136]
[1753025596169,1.13400812,118770.0,118760.0,0.09656192]
[1753025596362,1.13400812,118770.0,118760.0,0.0210854]
[1753025596563,1.13400812,118770.0,118760.0,0.08158868]
[1753025596766,1.13400812,118770.0,118760.0,0.03228868]
[1753025597368,1.62700812,118770.0,118760.0,0.01036051]
[1753025597562,1.62700812,118770.0,118750.0,0.08983403]
[1753025597563,0.2032346,118760.0,118740.0,0.29012818]
[1753025597768,0.3780802,118750.0,118740.0,0.02258]
[1753025598062,0.4880802,118750.0,118740.0,0.03292708]
[1753025598867,0.4880802,118750.0,118740.0,0.03692708]
[1753025599265,0.4880802,118750.0,118740.0,0.04901708]
[1753025599565,0.4880802,118750.0,118740.0,0.04801708]
[1753025599766,0.4880802,118750.0,118740.0,0.07110248]
[1753025599968,0.4880802,118750.0,118740.0,0.28575414]
[1753025600368,0.4880802,118750.0,118740.0,0.07110248]
[1753025600973,0.4880802,118750.0,118740.0,0.28575414]
[1753025602178,0.4876502,118750.0,118740.0,0.38832788]
[1753025602474,0.4876502,118750.0,118740.0,0.46493788]
[1753025602668,0.4876502,118750.0,118740.0,0.63330228]
[1753025602869,0.4876502,118750.0,118740.0,0.68278228]
[1753025603573,0.4869702,118750.0,118740.0,0.68278228]
[1753025606380,0.4869702,118750.0,118740.0,0.46813062]
[1753025606580,0.4869702,118750.0,118740.0,0.68278228]
[1753025607681,0.4869702,118750.0,118740.0,0.74320689]
[1753025610176,0.4869702,118750.0,118740.0,1.10400689]
[1753025610481,0.4869702,118750.0,118740.0,0.74320689]
[1753025615393,0.4869702,118750.0,118740.0,1.10400689]
[1753025615892,0.4869702,118750.0,118740.0,1.04358228]
[1753025616288,0.4869702,118750.0,118740.0,1.1190588]
[1753025617495,0.4869702,118750.0,118740.0,0.68278228]
[1753025618589,0.2895434,118760.0,118740.0,1.58830154]
[1753025618794,0.3716279,118760.0,118750.0,0.90266784]
[1753025618991,0.2504279,118760.0,118750.0,0.83416452]
[1753025619192,0.2504279,118760.0,118750.0,1.04881618]
[1753025619391,0.2083434,118760.0,118750.0,1.04881618]
[1753025619596,0.2533734,118760.0,118750.0,1.04881618]
[1753025619996,0.04,118760.0,118750.0,1.04881618]
[1753025620199,0.01571,118760.0,118750.0,1.45496924]
[1753025620497,0.8775667,118780.0,118770.0,0.4129118]
[1753025620697,0.8775667,118780.0,118770.0,1.24408346]
[1753025621086,0.5167667,118780.0,118770.0,1.24408346]
[1753025621291,0.5167667,118780.0,118770.0,1.3044987]
[1753025621490,0.5665467,118780.0,118770.0,1.3044987]
[1753025621686,0.5665467,118780.0,118770.0,1.15795037]
[1753025621894,0.5665467,118780.0,118770.0,1.37260203]
[1753025622700,0.5675467,118780.0,118770.0,1.37260203]
[1753025622999,0.5792367,118780.0,118770.0,1.37260203]
[1753025623201,0.6013967,118780.0,118770.0,1.37260203]
[1753025623400,0.6023967,118780.0,118770.0,1.37260203]
[1753025623999,0.6013967,118780.0,118770.0,1.37260203]
[1753025624496,0.6003967,118780.0,118770.0,1.37260203]
[1753025624704,0.6003967,118780.0,118770.0,1.15795037]
[1753025624907,0.6003967,118780.0,118770.0,1.37260203]
[1753025625406,0.6003967,118780.0,118770.0,1.39368743]
[1753025626200,0.6003967,118780.0,118770.0,1.33327219]
[1753025626600,0.6003967,118780.0,118770.0,1.40874871]
[1753025627006,0.6003967,118780.0,118770.0,1.19409705]
[1753025627194,0.6003967,118780.0,118770.0,1.33327219]
[1753025627599,0.5583176,118780.0,118770.0,1.33327219]
[1753025628107,0.5583176,118780.0,118770.0,1.39360809]
[1753025628704,0.32576,118780.0,118770.0,1.39360809]
[1753025629209,0.32576,118780.0,118770.0,1.75437501]
[1753025629511,0.32576,118780.0,118770.0,1.69407219]
[1753025629807,0.32576,118780.0,118770.0,1.76954871]
[1753025630204,0.26429,118780.0,118770.0,1.69407219]
[1753025630504,0.26429,118780.0,118770.0,1.75436056]
[1753025630713,0.11,118780.0,118770.0,1.75436056]
[1753025630913,0.11,118780.0,118770.0,1.69407219]
[1753025631118,0.11,118780.0,118770.0,1.76954871]
[1753025631911,0.15503,118780.0,118770.0,1.76954871]
[1753025632313,0.11,118780.0,118770.0,1.93793271]
[1753025632513,0.11,118780.0,118770.0,1.86245619]
[1753025634211,0.11,118780.0,118770.0,1.64780453]
[1753025634412,0.11,118780.0,118770.0,1.86245619]
[1753025634815,0.11,118780.0,118770.0,1.93793271]
[1753025635603,0.89919,118820.0,118790.0,0.2311136]
[1753025635809,0.121893,118830.0,118820.0,0.3775711]
[1753025636108,0.077453,118830.0,118820.0,0.78194031]
[1753025636305,0.151893,118830.0,118820.0,0.99659197]
[1753025636505,0.3518099,118830.0,118820.0,0.99659197]
[1753025636704,0.4145799,118830.0,118820.0,0.99259197]
[1753025636903,0.246343,118830.0,118820.0,0.77794031]
[1753025637214,0.7753799,118830.0,118820.0,0.002]
[1753025637409,0.99003156,118830.0,118820.0,0.002]
[1753025637608,0.3825311,118820.0,118810.0,0.06018873]
[1753025637804,0.8877211,118820.0,118810.0,0.06018873]
[1753025638110,0.5269211,118820.0,118810.0,0.39565393]
[1753025638321,0.5269211,118820.0,118810.0,0.1672]
[1753025638608,0.5269211,118820.0,118810.0,0.55011686]
[1753025638813,0.5269211,118820.0,118810.0,1.04667559]
[1753025638814,0.35867,118820.0,118810.0,1.04667559]
[1753025639010,0.12,118820.0,118810.0,1.00035193]
[1753025639312,0.12,118820.0,118810.0,1.51270393]
[1753025639313,0.23983,118820.0,118810.0,1.51270393]
[1753025639508,0.23983,118820.0,118810.0,1.51570393]
[1753025639708,0.23983,118820.0,118810.0,0.83702393]
[1753025639908,0.23983,118820.0,118810.0,1.4810352]
[1753025640114,0.23983,118820.0,118810.0,1.74070739]
[1753025640416,0.16539,118820.0,118810.0,1.76179279]
[1753025640607,0.12,118820.0,118810.0,1.71546913]
[1753025640808,0.12,118820.0,118810.0,2.07626913]
[1753025641414,0.12,118820.0,118810.0,2.29092079]
[1753025641616,0.12,118820.0,118810.0,2.07626913]
[1753025641814,0.12,118820.0,118810.0,2.24590026]
[1753025642014,0.12,118820.0,118810.0,2.0312486]
[1753025642215,0.12,118820.0,118810.0,2.07624548]
[1753025642409,0.12,118820.0,118810.0,2.29089714]
[1753025642615,0.12,118820.0,118810.0,1.90791748]
[1753025643307,0.23983,118820.0,118810.0,2.12256914]
[1753025643510,0.12,118820.0,118810.0,1.90791748]
[1753025643713,0.12,118820.0,118810.0,2.12256914]
[1753025643916,0.09937124,118820.0,118810.0,1.90791748]
[1753025644121,0.50629224,118820.0,118810.0,1.8629206]
[1753025644418,0.50629224,118820.0,118810.0,1.24789579]
[1753025644613,0.50629224,118820.0,118810.0,0.88601413]
[1753025644819,0.50629224,118820.0,118810.0,0.80156413]
[1753025645120,0.50629224,118820.0,118810.0,0.9096406]
[1753025645414,0.50629224,118820.0,118810.0,1.15220933]
[1753025645721,0.50629224,118820.0,118810.0,1.1413206]
[1753025646116,0.50629224,118820.0,118810.0,1.37963437]
[1753025646311,0.50629224,118820.0,118810.0,1.45487081]
[1753025646711,0.50629224,118820.0,118810.0,1.81567081]
[1753025646911,0.50629224,118820.0,118810.0,1.60101915]
[1753025647217,0.50629224,118820.0,118810.0,1.87815081]
[1753025647519,0.26296124,118820.0,118810.0,1.80291437]
[1753025647823,0.21920124,118820.0,118810.0,1.862878]
[1753025648025,0.14476124,118820.0,118810.0,1.862878]
[1753025648222,0.14476124,118820.0,118810.0,1.80291437]
[1753025648424,0.09937124,118820.0,118810.0,1.86288496]
[1753025648625,0.09937124,118820.0,118810.0,1.80291437]
[1753025648824,0.14476124,118820.0,118810.0,1.80291437]
[1753025649028,0.21920124,118820.0,118810.0,1.80291437]
[1753025649216,0.38745234,118820.0,118810.0,1.87815081]
[1753025649421,0.38745234,118820.0,118810.0,1.80291437]
[1753025649621,0.38745234,118820.0,118810.0,1.58826271]
[1753025649822,0.38745234,118820.0,118810.0,1.86289919]
[1753025650124,0.38745234,118820.0,118810.0,2.00269919]
[1753025650321,0.21920124,118820.0,118810.0,1.86289919]
[1753025650528,0.38745234,118820.0,118810.0,1.64824753]
[1753025650827,0.38745234,118820.0,118810.0,1.80291437]
[1753025651333,0.38745234,118820.0,118810.0,1.58826271]
[1753025651630,0.38745234,118820.0,118810.0,1.80332399]
[1753025652025,0.45560234,118820.0,118810.0,1.80332399]
[1753025652225,0.50629234,118820.0,118810.0,1.80332399]
[1753025652435,0.50629234,118820.0,118810.0,1.87856043]
[1753025652826,0.43810403,118820.0,118810.0,1.87856043]
[1753025653129,0.43810403,118820.0,118810.0,1.80332399]
[1753025653325,0.43810403,118820.0,118810.0,1.66369164]
[1753025653528,0.43810403,118820.0,118810.0,1.8783433]
[1753025653924,0.43810403,118820.0,118810.0,1.66369164]
[1753025654130,0.43810403,118820.0,118810.0,1.8783433]
[1753025654318,0.43810403,118820.0,118810.0,1.80332399]
[1753025655629,0.43810403,118820.0,118810.0,1.87839092]
[1753025656433,0.43810403,118820.0,118810.0,1.66373926]
[1753025656623,0.43810403,118820.0,118810.0,1.87839092]
[1753025657321,0.43810403,118820.0,118810.0,0.89705926]
[1753025657522,0.65275569,118820.0,118810.0,0.92669406]
[1753025657725,0.43810403,118820.0,118810.0,0.88510406]
[1753025657922,0.43810403,118820.0,118810.0,1.09975572]
[1753025658628,0.43810403,118820.0,118810.0,1.29322572]
[1753025660033,0.43810403,118820.0,118810.0,0.53334572]
[1753025660232,0.43810403,118820.0,118810.0,1.29194572]
[1753025660631,0.43810403,118820.0,118810.0,1.07729406]
[1753025661232,0.43810403,118820.0,118810.0,1.29194572]
[1753025661633,0.43810403,118820.0,118810.0,1.07729406]
[1753025661838,0.43810403,118820.0,118810.0,1.29194572]
[1753025662135,0.43810403,118820.0,118810.0,1.07729406]
[1753025662434,0.43810403,118820.0,118810.0,1.29194572]
[1753025662627,0.43810403,118820.0,118810.0,1.50951092]